[Event "*** Titled Tuesday Blitz"]
[Site "Chess.com"]
[Date "2019.04.02"]
[Round "9"]
[White "EvgenyT"]
[Black "KhalilMousavi77"]
[Result "0-1"]
[WhiteElo "2894"]
[BlackElo "2747"]
[TimeControl "180+2"]
[EndTime "16:08:47 PDT"]
[Termination "KhalilMousavi77 won by resignation"]

1. Nf3 {[%clk 0:03:01.9]} 1... Nf6 {[%clk 0:02:59.3]} 2. b3 {[%clk 0:03:02.1]}
2... d6 {[%clk 0:03:00.6]} 3. Bb2 {[%clk 0:03:01.7]} 3... e5 {[%clk 0:03:02.3]}
4. g3 {[%clk 0:03:02.5]} 4... c5 {[%clk 0:03:03.6]} 5. Bg2 {[%clk 0:03:03.3]}
5... Nc6 {[%clk 0:03:04.7]} 6. O-O {[%clk 0:03:03.8]} 6... Be7 {[%clk
0:03:06.6]} 7. c4 {[%clk 0:03:03.7]} 7... O-O {[%clk 0:03:06.2]} 8. Nc3 {[%clk
0:03:04.3]} 8... h6 {[%clk 0:03:07.7]} 9. d3 {[%clk 0:03:02.6]} 9... Be6 {[%clk
0:03:09.3]} 10. Rc1 {[%clk 0:02:54.2]} 10... d5 {[%clk 0:03:09.7]} 11. cxd5
{[%clk 0:02:54.4]} 11... Nxd5 {[%clk 0:03:11.6]} 12. Ne4 {[%clk 0:02:54.6]}
12... Qa5 {[%clk 0:03:06.2]} 13. Nxe5 {[%clk 0:02:52.5]} 13... Qxa2 {[%clk
0:03:01.6]} 14. Nc4 {[%clk 0:02:12.2]} 14... Qa6 {[%clk 0:03:03]} 15. Ra1 {[%clk
0:01:51.9]} 15... Qb5 {[%clk 0:03:04]} 16. Ned6 {[%clk 0:01:49]} 16... Bxd6
{[%clk 0:03:01.5]} 17. Nxd6 {[%clk 0:01:49.8]} 17... Qb6 {[%clk 0:03:02.8]} 18.
Qc1 {[%clk 0:01:07.3]} 18... Nd4 {[%clk 0:02:57.6]} 19. Bxd4 {[%clk 0:01:04.3]}
19... cxd4 {[%clk 0:02:59.5]} 20. Bxd5 {[%clk 0:00:33.2]} 20... Bxd5 {[%clk
0:03:00]} 21. Qf4 {[%clk 0:00:33.2]} 21... Rad8 {[%clk 0:02:53]} 22. Nf5 {[%clk
0:00:33.3]} 22... Be6 {[%clk 0:02:53.4]} 23. Ra4 {[%clk 0:00:22.2]} 23... Qxb3
{[%clk 0:02:40.6]} 24. Rxa7 {[%clk 0:00:21.5]} 24... Qb2 {[%clk 0:02:36.8]} 25.
Qg4 {[%clk 0:00:16.1]} 25... Bxf5 {[%clk 0:02:37.4]} 26. Qxf5 {[%clk 0:00:17.2]}
26... Rd6 {[%clk 0:02:36.2]} 27. Qe4 {[%clk 0:00:12.4]} 27... Re6 {[%clk
0:02:33.5]} 28. Qxb7 {[%clk 0:00:13]} 28... Qxe2 {[%clk 0:02:35.1]} 29. Qb5
{[%clk 0:00:05.8]} 29... h5 {[%clk 0:02:34.5]} 30. h4 {[%clk 0:00:06.3]} 30...
Rg6 {[%clk 0:02:34.9]} 31. Qf5 {[%clk 0:00:06.7]} 31... Rg4 {[%clk 0:02:34.8]}
32. Rd7 {[%clk 0:00:05.8]} 32... g6 {[%clk 0:02:26.7]} 33. Qf6 {[%clk 0:00:07]}
33... Qxd3 {[%clk 0:02:27.4]} 34. Re1 {[%clk 0:00:07.2]} 34... Qb5 {[%clk
0:02:25.5]} 35. Ree7 {[%clk 0:00:07.3]} 35... Qb3 {[%clk 0:02:21]} 36. Rxf7
{[%clk 0:00:04.7]} 36... Qxf7 {[%clk 0:02:21]} 37. Rxf7 {[%clk 0:00:05.5]} 37...
Rxf7 {[%clk 0:02:22.9]} 38. Qe5 {[%clk 0:00:06]} 38... Rf5 {[%clk 0:02:10.5]}
39. Qe8+ {[%clk 0:00:06.1]} 39... Kg7 {[%clk 0:02:11.8]} 40. Kg2 {[%clk
0:00:05]} 40... d3 {[%clk 0:02:09.5]} 41. f3 {[%clk 0:00:05.5]} 41... Rd4 {[%clk
0:02:07]} 42. Qe7+ {[%clk 0:00:06.5]} 42... Kh8 {[%clk 0:01:54.2]} 43. Qe8+
{[%clk 0:00:05.1]} 43... Kh7 {[%clk 0:01:54.9]} 44. Qe7+ {[%clk 0:00:06.1]}
44... Kg8 {[%clk 0:01:56]} 45. Qe6+ {[%clk 0:00:05.7]} 45... Rf7 {[%clk
0:01:53.3]} 46. Qxg6+ {[%clk 0:00:05.9]} 46... Kf8 {[%clk 0:01:52.8]} 47. Qh6+
{[%clk 0:00:06.8]} 47... Kg8 {[%clk 0:01:47]} 48. Qg6+ {[%clk 0:00:07.1]} 48...
Kf8 {[%clk 0:01:45.6]} 49. Qxh5 {[%clk 0:00:06.5]} 49... Rd6 {[%clk 0:01:11.9]}
50. Qh8+ {[%clk 0:00:06.1]} 50... Ke7 {[%clk 0:01:13.3]} 51. Qe5+ {[%clk
0:00:07]} 51... Kd7 {[%clk 0:01:14.8]} 52. Qb5+ {[%clk 0:00:07.6]} 52... Kd8
{[%clk 0:01:12.6]} 53. Qa5+ {[%clk 0:00:07.8]} 53... Rc7 {[%clk 0:01:12.7]} 54.
Qa8+ {[%clk 0:00:04]} 54... Kd7 {[%clk 0:01:13.1]} 55. Qa4+ {[%clk 0:00:04.7]}
55... Rcc6 {[%clk 0:01:11.3]} 56. Qa7+ {[%clk 0:00:05.5]} 56... Ke6 {[%clk
0:01:12.7]} 57. Qe3+ {[%clk 0:00:06.2]} 57... Kf7 {[%clk 0:01:13.3]} 58. Qf4+
{[%clk 0:00:06.4]} 58... Ke7 {[%clk 0:01:15]} 59. Qe5+ {[%clk 0:00:07.2]} 59...
Kd7 {[%clk 0:01:16.7]} 60. Qg7+ {[%clk 0:00:06.2]} 60... Kc8 {[%clk 0:01:18.1]}
61. Qg8+ {[%clk 0:00:05.8]} 61... Rd8 {[%clk 0:01:15.3]} 62. Qg4+ {[%clk
0:00:06.5]} 62... Kc7 {[%clk 0:01:15]} 63. Qf4+ {[%clk 0:00:07.3]} 63... Rdd6
{[%clk 0:01:15.2]} 64. Qf7+ {[%clk 0:00:08.3]} 64... Kb6 {[%clk 0:01:02.4]} 65.
Qb3+ {[%clk 0:00:09.1]} 65... Ka7 {[%clk 0:01:04]} 66. Qa3+ {[%clk 0:00:05.5]}
66... Ra6 {[%clk 0:01:04.6]} 67. Qc5+ {[%clk 0:00:06.5]} 67... Kb7 {[%clk
0:01:04.9]} 68. Qb4+ {[%clk 0:00:07.2]} 68... Rab6 {[%clk 0:01:06.2]} 69. Qd2
{[%clk 0:00:08.1]} 69... Rbc6 {[%clk 0:00:57.8]} 70. Kh3 {[%clk 0:00:09]} 70...
Rc2 {[%clk 0:00:56.6]} 71. Qb4+ {[%clk 0:00:09.6]} 71... Kc7 {[%clk 0:00:58.3]}
72. Qa5+ {[%clk 0:00:08.4]} 72... Kd7 {[%clk 0:00:59.9]} 73. Qb5+ {[%clk
0:00:07.9]} 73... Ke6 {[%clk 0:00:57.9]} 74. Qb3+ {[%clk 0:00:08.4]} 74... Rd5
{[%clk 0:00:59.2]} 75. Qb6+ {[%clk 0:00:09]} 75... Kd7 {[%clk 0:00:58.3]} 76.
Qb7+ {[%clk 0:00:09.3]} 76... Kd6 {[%clk 0:00:59.3]} 77. Qb4+ {[%clk 0:00:10.2]}
77... Rcc5 {[%clk 0:00:59.6]} 78. Qf4+ {[%clk 0:00:10.3]} 78... Kc6 {[%clk
0:01:00.6]} 79. Qa4+ {[%clk 0:00:09.4]} 79... Rb5 {[%clk 0:01:00.6]} 80. Qc4+
{[%clk 0:00:10.1]} 80... Kb6 {[%clk 0:01:01.8]} 81. Qc8 {[%clk 0:00:02.5]} 81...
d2 {[%clk 0:01:01.4]} 82. Qb8+ {[%clk 0:00:03.6]} 82... Kc5 {[%clk 0:00:59.9]}
83. Qc7+ {[%clk 0:00:04.3]} 83... Kd4 {[%clk 0:00:59.1]} 84. Qc2 {[%clk
0:00:03.9]} 84... Ke3 {[%clk 0:00:47.9]} 85. Qd1 {[%clk 0:00:04.7]} 85... Rbc5
{[%clk 0:00:37.8]} 86. Kg4 {[%clk 0:00:05.6]} 86... Rc1 {[%clk 0:00:35.4]} 87.
Qb3+ {[%clk 0:00:06.2]} 87... Rd3 {[%clk 0:00:35]} 88. Qb6+ {[%clk 0:00:06.6]}
88... Rd4+ {[%clk 0:00:36.7]} 0-1

[Event "*** Titled Tuesday Blitz"]
[Site "Chess.com"]
[Date "2019.04.02"]
[Round "10"]
[White "sergiochess83"]
[Black "Haykos"]
[Result "1-0"]
[WhiteElo "2734"]
[BlackElo "2591"]
[TimeControl "180+2"]
[EndTime "16:11:08 PDT"]
[Termination "sergiochess83 won by resignation"]

1. Nf3 {[%clk 0:03:01.9]} 1... Nf6 {[%clk 0:02:59.3]} 2. c4 {[%clk 0:03:02.3]}
2... Nc6 {[%clk 0:02:59.1]} 3. d4 {[%clk 0:03:02.2]} 3... d5 {[%clk 0:02:56.1]}
4. cxd5 {[%clk 0:03:02.5]} 4... Nxd5 {[%clk 0:02:56.7]} 5. e4 {[%clk 0:03:03.3]}
5... Nf6 {[%clk 0:02:55.2]} 6. h3 {[%clk 0:02:50]} 6... Nxe4 {[%clk 0:02:54.8]}
7. d5 {[%clk 0:02:49.9]} 7... Nb8 {[%clk 0:02:50.7]} 8. Qa4+ {[%clk 0:02:50.1]}
8... Nd7 {[%clk 0:02:45.1]} 9. Qxe4 {[%clk 0:02:52]} 9... Nf6 {[%clk 0:02:46.4]}
10. Qa4+ {[%clk 0:02:42]} 10... Bd7 {[%clk 0:02:46.9]} 11. Qb3 {[%clk
0:02:43.1]} 1-0

[Event "*** Titled Tuesday Blitz"]
[Site "Chess.com"]
[Date "2019.04.02"]
[Round "10"]
[White "chessking2151"]
[Black "Caisachess"]
[Result "1-0"]
[WhiteElo "2579"]
[BlackElo "2404"]
[TimeControl "180+2"]
[EndTime "16:11:47 PDT"]
[Termination "chessking2151 won by resignation"]

1. e4 {[%clk 0:03:01.9]} 1... e5 {[%clk 0:03:01.1]} 2. Nf3 {[%clk 0:03:03.1]}
2... Nc6 {[%clk 0:03:02.7]} 3. Bb5 {[%clk 0:03:04.1]} 3... f5 {[%clk 0:03:04.2]}
4. d3 {[%clk 0:03:00.4]} 4... fxe4 {[%clk 0:03:05.3]} 5. dxe4 {[%clk 0:03:02.3]}
5... Nf6 {[%clk 0:03:06.6]} 6. O-O {[%clk 0:03:03.9]} 6... Bc5 {[%clk
0:03:07.2]} 7. Bxc6 {[%clk 0:03:02.1]} 7... bxc6 {[%clk 0:03:06.3]} 8. Nxe5
{[%clk 0:03:02.5]} 8... Nxe4 {[%clk 0:03:03]} 9. Qh5+ {[%clk 0:02:33.1]} 9... g6
{[%clk 0:02:34.5]} 10. Nxg6 {[%clk 0:02:25.6]} 10... Nf6 {[%clk 0:02:23.9]} 11.
Qe5+ {[%clk 0:02:25]} 11... Be7 {[%clk 0:02:23.8]} 1-0

[Event "*** Titled Tuesday Blitz"]
[Site "Chess.com"]
[Date "2019.04.02"]
[Round "10"]
[White "vgyogi"]
[Black "FedaMaster"]
[Result "0-1"]
[WhiteElo "2163"]
[BlackElo "2594"]
[TimeControl "180+2"]
[EndTime "16:13:30 PDT"]
[Termination "FedaMaster won by checkmate"]

1. d4 {[%clk 0:03:01.9]} 1... Nf6 {[%clk 0:02:59.9]} 2. Bg5 {[%clk 0:03:01.3]}
2... Ne4 {[%clk 0:02:56.7]} 3. Bf4 {[%clk 0:03:01.9]} 3... c5 {[%clk 0:02:56.1]}
4. f3 {[%clk 0:03:02.9]} 4... Qa5+ {[%clk 0:02:55.8]} 5. c3 {[%clk 0:03:03.2]}
5... Nf6 {[%clk 0:02:56.2]} 6. d5 {[%clk 0:03:03.4]} 6... e6 {[%clk 0:02:51.9]}
7. e4 {[%clk 0:03:03.9]} 7... Be7 {[%clk 0:02:44]} 8. Na3 {[%clk 0:02:47.6]}
8... O-O {[%clk 0:02:42.4]} 9. Bd3 {[%clk 0:02:46.5]} 9... exd5 {[%clk
0:02:39.3]} 10. exd5 {[%clk 0:02:47]} 10... Re8 {[%clk 0:02:38.7]} 11. Ne2
{[%clk 0:02:46.3]} 11... c4 {[%clk 0:02:37]} 12. Nxc4 {[%clk 0:02:37.9]} 12...
Qxd5 {[%clk 0:02:37.9]} 13. O-O {[%clk 0:02:37.5]} 13... Nc6 {[%clk 0:02:38.5]}
14. Kh1 {[%clk 0:02:37.5]} 14... Nh5 {[%clk 0:02:38.5]} 15. Bxh7+ {[%clk
0:02:36.6]} 15... Kxh7 {[%clk 0:02:39.6]} 16. Qxd5 {[%clk 0:02:37.4]} 16... Nf6
{[%clk 0:02:40.5]} 17. Qd3+ {[%clk 0:02:36.6]} 17... Kg8 {[%clk 0:02:41.2]} 18.
Rae1 {[%clk 0:02:34.6]} 18... d5 {[%clk 0:02:42.1]} 19. Ne5 {[%clk 0:02:30.3]}
19... Nh5 {[%clk 0:02:40.3]} 20. Nxc6 {[%clk 0:02:29.5]} 20... bxc6 {[%clk
0:02:40.9]} 21. Bd2 {[%clk 0:02:25.5]} 21... a5 {[%clk 0:02:38.5]} 22. Qd4
{[%clk 0:02:15.4]} 22... Bf6 {[%clk 0:02:37]} 23. Qc5 {[%clk 0:02:10.7]} 23...
Ba6 {[%clk 0:02:38.2]} 24. Ng3 {[%clk 0:01:59.5]} 24... Nxg3+ {[%clk 0:02:39.1]}
25. hxg3 {[%clk 0:01:57.4]} 25... Bxf1 {[%clk 0:02:41]} 26. Rxf1 {[%clk
0:01:57.8]} 26... Rad8 {[%clk 0:02:34.7]} 27. Qxc6 {[%clk 0:01:56.3]} 27... d4
{[%clk 0:02:35.9]} 28. cxd4 {[%clk 0:01:54.9]} 28... Bxd4 {[%clk 0:02:30.3]} 29.
Bc3 {[%clk 0:01:55.9]} 29... Re6 {[%clk 0:02:31]} 30. Qc7 {[%clk 0:01:52.9]}
30... Rh6# {[%clk 0:02:31.8]} 0-1

[Event "*** Titled Tuesday Blitz"]
[Site "Chess.com"]
[Date "2019.04.02"]
[Round "10"]
[White "scaryninja"]
[Black "Kirill_Klukin"]
[Result "1-0"]
[WhiteElo "2490"]
[BlackElo "2564"]
[TimeControl "180+2"]
[EndTime "16:13:51 PDT"]
[Termination "scaryninja won by resignation"]

1. d4 {[%clk 0:03:01.9]} 1... Nf6 {[%clk 0:02:57.8]} 2. Bf4 {[%clk 0:03:02.6]}
2... g6 {[%clk 0:02:58.5]} 3. Nc3 {[%clk 0:03:02.7]} 3... d5 {[%clk 0:02:59]} 4.
e3 {[%clk 0:03:02.4]} 4... Bg7 {[%clk 0:03:00.5]} 5. h4 {[%clk 0:03:03.2]} 5...
O-O {[%clk 0:03:02.1]} 6. h5 {[%clk 0:03:03.4]} 6... Nxh5 {[%clk 0:03:00]} 7.
Rxh5 {[%clk 0:03:04.3]} 7... gxh5 {[%clk 0:03:01.1]} 8. Qxh5 {[%clk 0:03:05.9]}
8... e6 {[%clk 0:03:00.5]} 9. Bd3 {[%clk 0:03:05.4]} 9... f5 {[%clk 0:02:59.8]}
10. Nf3 {[%clk 0:03:05.8]} 10... Qe8 {[%clk 0:03:00.8]} 11. Qh2 {[%clk
0:03:06.2]} 11... c6 {[%clk 0:03:00.2]} 12. Bxb8 {[%clk 0:03:06.1]} 12... c5
{[%clk 0:02:53.3]} 13. Be5 {[%clk 0:02:59.1]} 13... c4 {[%clk 0:02:53.1]} 14.
Be2 {[%clk 0:02:57.7]} 14... b5 {[%clk 0:02:53.9]} 15. Qg3 {[%clk 0:02:15.2]}
15... Rf7 {[%clk 0:02:53.9]} 16. Ng5 {[%clk 0:02:06.4]} 16... Bxe5 {[%clk
0:02:49.8]} 17. Qxe5 {[%clk 0:01:57.1]} 17... Rg7 {[%clk 0:02:51]} 18. Nxd5
{[%clk 0:01:53.1]} 18... Qg6 {[%clk 0:02:37.9]} 19. f4 {[%clk 0:01:22.5]} 19...
Bb7 {[%clk 0:02:33.9]} 20. Nf6+ {[%clk 0:01:18.7]} 20... Kh8 {[%clk 0:02:34.6]}
21. Nh5 {[%clk 0:01:16.3]} 21... Bd5 {[%clk 0:02:33.4]} 22. O-O-O {[%clk
0:01:13.1]} 22... Kg8 {[%clk 0:02:29.3]} 23. Nxg7 {[%clk 0:01:10.6]} 23... Qxg7
{[%clk 0:02:31.2]} 24. Qxg7+ {[%clk 0:01:11.3]} 24... Kxg7 {[%clk 0:02:33.1]}
25. Bf3 {[%clk 0:01:12.1]} 25... h5 {[%clk 0:02:34.5]} 26. Nxe6+ {[%clk
0:01:11.5]} 1-0

[Event "*** Titled Tuesday Blitz"]
[Site "Chess.com"]
[Date "2019.04.02"]
[Round "10"]
[White "Alex_Terzi"]
[Black "Zq1"]
[Result "0-1"]
[WhiteElo "2404"]
[BlackElo "2523"]
[TimeControl "180+2"]
[EndTime "16:14:21 PDT"]
[Termination "Zq1 won by resignation"]

1. e4 {[%clk 0:03:01.9]} 1... c5 {[%clk 0:02:32.4]} 2. Nf3 {[%clk 0:03:02.3]}
2... d6 {[%clk 0:02:32.6]} 3. d4 {[%clk 0:03:03.3]} 3... cxd4 {[%clk 0:02:33.5]}
4. Nxd4 {[%clk 0:03:05.2]} 4... Nf6 {[%clk 0:02:34.5]} 5. Nc3 {[%clk 0:03:06.6]}
5... Nc6 {[%clk 0:02:35.7]} 6. f3 {[%clk 0:03:00.4]} 6... Nxd4 {[%clk
0:02:35.8]} 7. Qxd4 {[%clk 0:03:00.7]} 7... g6 {[%clk 0:02:37.4]} 8. Be3 {[%clk
0:03:00.8]} 8... Bg7 {[%clk 0:02:38.4]} 9. O-O-O {[%clk 0:03:01.4]} 9... O-O
{[%clk 0:02:39.5]} 10. Qd2 {[%clk 0:03:02.6]} 10... Be6 {[%clk 0:02:37.2]} 11.
g4 {[%clk 0:03:03.5]} 11... Rc8 {[%clk 0:02:37.2]} 12. Kb1 {[%clk 0:03:04.3]}
12... Re8 {[%clk 0:02:33.2]} 13. Nd5 {[%clk 0:03:01.3]} 13... Bxd5 {[%clk
0:02:27.5]} 14. exd5 {[%clk 0:03:01.5]} 14... Qc7 {[%clk 0:02:28.5]} 15. Rc1
{[%clk 0:02:52]} 15... a6 {[%clk 0:02:18.9]} 16. h4 {[%clk 0:02:52.5]} 16... h5
{[%clk 0:02:17.8]} 17. g5 {[%clk 0:02:43.9]} 17... Nd7 {[%clk 0:02:18]} 18. Bh3
{[%clk 0:02:40.5]} 18... Ne5 {[%clk 0:02:16.7]} 19. Bxc8 {[%clk 0:02:30]} 19...
Nc4 {[%clk 0:02:17.2]} 20. Qf2 {[%clk 0:02:17]} 20... Bxb2 {[%clk 0:02:09.5]}
21. Bh3 {[%clk 0:02:04.2]} 21... Bc3 {[%clk 0:01:49.9]} 22. Rcd1 {[%clk
0:01:47.4]} 22... Qa5 {[%clk 0:01:49.8]} 23. Rd3 {[%clk 0:01:36]} 23... Qa3
{[%clk 0:01:45.1]} 24. Bc1 {[%clk 0:01:32.7]} 24... Qb4+ {[%clk 0:01:43.9]} 0-1

[Event "*** Titled Tuesday Blitz"]
[Site "Chess.com"]
[Date "2019.04.02"]
[Round "10"]
[White "Manukyan_Artak"]
[Black "Lion_DL"]
[Result "1/2-1/2"]
[WhiteElo "2449"]
[BlackElo "2453"]
[TimeControl "180+2"]
[EndTime "16:14:26 PDT"]
[Termination "Game drawn by agreement"]

1. e4 {[%clk 0:03:01.9]} 1... Nc6 {[%clk 0:02:58.3]} 2. Nf3 {[%clk 0:03:02.1]}
2... d6 {[%clk 0:02:59.7]} 3. d4 {[%clk 0:03:03.1]} 3... Nf6 {[%clk 0:03:01.1]}
4. Nc3 {[%clk 0:03:02.3]} 4... g6 {[%clk 0:03:01.9]} 5. d5 {[%clk 0:03:01.7]}
5... Nb8 {[%clk 0:03:02.3]} 6. Bg5 {[%clk 0:03:01.5]} 6... Bg7 {[%clk
0:03:03.5]} 7. Qd2 {[%clk 0:03:02.7]} 7... h6 {[%clk 0:03:00.5]} 8. Be3 {[%clk
0:03:02.5]} 8... Ng4 {[%clk 0:02:55.2]} 9. Bd4 {[%clk 0:03:02.1]} 9... Ne5
{[%clk 0:02:46.1]} 10. Nxe5 {[%clk 0:03:00]} 10... Bxe5 {[%clk 0:02:37.4]} 11.
Bxe5 {[%clk 0:03:00.9]} 11... dxe5 {[%clk 0:02:38.9]} 12. O-O-O {[%clk
0:03:02.4]} 12... a6 {[%clk 0:02:36.8]} 13. f3 {[%clk 0:02:47.1]} 13... Qd6
{[%clk 0:02:35.6]} 14. g4 {[%clk 0:02:42.3]} 14... h5 {[%clk 0:02:32.6]} 15. g5
{[%clk 0:02:40.3]} 15... Nd7 {[%clk 0:02:28.5]} 16. h4 {[%clk 0:02:41.3]} 16...
Nb6 {[%clk 0:02:29.1]} 17. Kb1 {[%clk 0:02:37.2]} 17... Bd7 {[%clk 0:02:29.5]}
18. b3 {[%clk 0:02:35.2]} 18... O-O-O {[%clk 0:02:13.5]} 19. Bh3 {[%clk
0:02:35.2]} 19... Bxh3 {[%clk 0:02:11.8]} 20. Rxh3 {[%clk 0:02:37.1]} 20... e6
{[%clk 0:02:13.3]} 21. Qe3 {[%clk 0:02:23.9]} 21... exd5 {[%clk 0:01:50]} 22.
Nxd5 {[%clk 0:02:22.9]} 22... Nxd5 {[%clk 0:01:45.1]} 23. Rxd5 {[%clk
0:02:24.8]} 23... Qe6 {[%clk 0:01:46.6]} 24. Rxd8+ {[%clk 0:02:24.4]} 24... Rxd8
{[%clk 0:01:46]} 25. Rh2 {[%clk 0:02:23.3]} 25... Qd6 {[%clk 0:01:40.4]} 26. Kb2
{[%clk 0:02:14.6]} 26... Qd4+ {[%clk 0:01:39]} 27. Qxd4 {[%clk 0:02:14.3]} 27...
Rxd4 {[%clk 0:01:40.5]} 28. Kc1 {[%clk 0:02:15.5]} 28... Kd7 {[%clk 0:01:40.7]}
29. Rd2 {[%clk 0:02:12.7]} 29... c5 {[%clk 0:01:41.8]} 30. c3 {[%clk 0:02:13.5]}
30... Rxd2 {[%clk 0:01:39.7]} 31. Kxd2 {[%clk 0:02:15.4]} 31... b5 {[%clk
0:01:40.5]} 1/2-1/2

[Event "*** Titled Tuesday Blitz"]
[Site "Chess.com"]
[Date "2019.04.02"]
[Round "10"]
[White "MathiasWomacka"]
[Black "albano87"]
[Result "1-0"]
[WhiteElo "2290"]
[BlackElo "2326"]
[TimeControl "180+2"]
[EndTime "16:14:44 PDT"]
[Termination "MathiasWomacka won by resignation"]

1. e4 {[%clk 0:03:01.6]} 1... c5 {[%clk 0:03:00.3]} 2. Nf3 {[%clk 0:03:02]} 2...
Nc6 {[%clk 0:03:01.3]} 3. d4 {[%clk 0:03:02.2]} 3... cxd4 {[%clk 0:03:01.5]} 4.
Nxd4 {[%clk 0:03:04.1]} 4... Nf6 {[%clk 0:03:02.2]} 5. Nc3 {[%clk 0:03:04.5]}
5... d6 {[%clk 0:02:58.7]} 6. Be2 {[%clk 0:03:04.4]} 6... Nxd4 {[%clk
0:02:59.6]} 7. Qxd4 {[%clk 0:03:03.8]} 7... g6 {[%clk 0:03:01.5]} 8. Bg5 {[%clk
0:02:47.7]} 8... Bg7 {[%clk 0:03:01]} 9. Nd5 {[%clk 0:02:32.7]} 9... O-O {[%clk
0:02:57.9]} 10. Bxf6 {[%clk 0:02:33]} 10... exf6 {[%clk 0:02:59.8]} 11. Qb4
{[%clk 0:01:51.1]} 11... f5 {[%clk 0:02:53.3]} 12. exf5 {[%clk 0:01:49.5]} 12...
Be6 {[%clk 0:02:54.1]} 13. fxe6 {[%clk 0:01:47.6]} 13... fxe6 {[%clk 0:02:53.3]}
14. Ne3 {[%clk 0:01:37.2]} 14... d5 {[%clk 0:02:53.5]} 15. O-O {[%clk
0:01:36.8]} 15... a5 {[%clk 0:02:51.3]} 16. Qa3 {[%clk 0:01:36.1]} 16... Qf6
{[%clk 0:02:35.9]} 17. c3 {[%clk 0:01:34.7]} 17... b5 {[%clk 0:02:34.3]} 18.
Bxb5 {[%clk 0:01:31.4]} 18... Rab8 {[%clk 0:02:33.8]} 19. Be2 {[%clk 0:01:28.4]}
19... h5 {[%clk 0:02:27.6]} 20. Rad1 {[%clk 0:01:28.1]} 20... h4 {[%clk
0:02:27.6]} 21. Bg4 {[%clk 0:01:25.6]} 21... Bh6 {[%clk 0:02:22.1]} 22. Qd6
{[%clk 0:01:21.7]} 22... Rxb2 {[%clk 0:02:20.2]} 23. Bxe6+ {[%clk 0:01:04.8]}
23... Kg7 {[%clk 0:02:22.1]} 24. Ng4 {[%clk 0:01:00.4]} 24... Qf4 {[%clk
0:02:20]} 25. Qe7+ {[%clk 0:00:51]} 1-0

[Event "*** Titled Tuesday Blitz"]
[Site "Chess.com"]
[Date "2019.04.02"]
[Round "10"]
[White "pastouche06"]
[Black "gonzaga23"]
[Result "1-0"]
[WhiteElo "2387"]
[BlackElo "2340"]
[TimeControl "180+2"]
[EndTime "16:15:20 PDT"]
[Termination "pastouche06 won by resignation"]

1. d4 {[%clk 0:03:01.5]} 1... Nf6 {[%clk 0:02:59.9]} 2. c4 {[%clk 0:03:02.1]}
2... e6 {[%clk 0:02:55.3]} 3. Nc3 {[%clk 0:03:02.2]} 3... Bb4 {[%clk 0:02:55.9]}
4. e3 {[%clk 0:03:02.7]} 4... O-O {[%clk 0:02:55.5]} 5. Bd3 {[%clk 0:03:02.7]}
5... d5 {[%clk 0:02:56.1]} 6. Nf3 {[%clk 0:03:03]} 6... dxc4 {[%clk 0:02:57.1]}
7. Bxc4 {[%clk 0:03:03.9]} 7... b6 {[%clk 0:02:57.9]} 8. O-O {[%clk 0:03:03.8]}
8... Bb7 {[%clk 0:02:57.4]} 9. Qe2 {[%clk 0:03:03.5]} 9... Nbd7 {[%clk
0:02:54.4]} 10. Rd1 {[%clk 0:03:03.3]} 10... Qe7 {[%clk 0:02:54.4]} 11. a3
{[%clk 0:02:54]} 11... Bxc3 {[%clk 0:02:53.1]} 12. bxc3 {[%clk 0:02:55.9]} 12...
Ne4 {[%clk 0:02:54]} 13. Bb2 {[%clk 0:02:53.2]} 13... c5 {[%clk 0:02:50.1]} 14.
Bd3 {[%clk 0:02:52.7]} 14... Rac8 {[%clk 0:02:49.2]} 15. a4 {[%clk 0:02:51.1]}
15... Rfd8 {[%clk 0:02:45.9]} 16. a5 {[%clk 0:02:51.5]} 16... Ra8 {[%clk
0:02:24.4]} 17. Bb5 {[%clk 0:02:44.4]} 17... Nd6 {[%clk 0:02:19.6]} 18. Bd3
{[%clk 0:02:36.6]} 18... Be4 {[%clk 0:02:04.1]} 19. Ba6 {[%clk 0:02:29.5]} 19...
Bb7 {[%clk 0:01:52.4]} 20. axb6 {[%clk 0:02:23.9]} 20... axb6 {[%clk 0:01:51.4]}
21. Bxb7 {[%clk 0:02:24.7]} 21... Nxb7 {[%clk 0:01:53.3]} 22. Rxa8 {[%clk
0:02:11.8]} 22... Rxa8 {[%clk 0:01:52.5]} 23. Qb5 {[%clk 0:02:13.3]} 23... Nd6
{[%clk 0:01:52.4]} 24. Qc6 {[%clk 0:02:09.7]} 24... Rc8 {[%clk 0:01:53.1]} 25.
Qa4 {[%clk 0:02:10.7]} 25... b5 {[%clk 0:01:49.6]} 26. Qa7 {[%clk 0:02:09.3]}
26... c4 {[%clk 0:01:51.1]} 27. Ba3 {[%clk 0:02:04]} 27... f6 {[%clk 0:01:21.9]}
28. Qa6 {[%clk 0:02:01.8]} 1-0

[Event "*** Titled Tuesday Blitz"]
[Site "Chess.com"]
[Date "2019.04.02"]
[Round "10"]
[White "FearNoEvil12"]
[Black "XiaoKangZhong"]
[Result "0-1"]
[WhiteElo "2005"]
[BlackElo "2132"]
[TimeControl "180+2"]
[EndTime "16:15:34 PDT"]
[Termination "XiaoKangZhong won by checkmate"]

1. e4 {[%clk 0:03:01.9]} 1... c6 {[%clk 0:02:58.9]} 2. d4 {[%clk 0:03:02.2]}
2... d5 {[%clk 0:02:59.6]} 3. Nc3 {[%clk 0:03:03.7]} 3... dxe4 {[%clk
0:02:59.7]} 4. Nxe4 {[%clk 0:03:05.1]} 4... Nf6 {[%clk 0:03:01.2]} 5. Ng3 {[%clk
0:03:05.2]} 5... h5 {[%clk 0:03:00.4]} 6. Nf3 {[%clk 0:03:03.9]} 6... h4 {[%clk
0:02:55.3]} 7. Ne2 {[%clk 0:03:04.1]} 7... Bg4 {[%clk 0:02:55.4]} 8. Nf4 {[%clk
0:02:59.2]} 8... Nd5 {[%clk 0:02:43.3]} 9. h3 {[%clk 0:02:54.4]} 9... Bf5 {[%clk
0:02:36.3]} 10. Bd3 {[%clk 0:02:50.2]} 10... Nxf4 {[%clk 0:02:22.4]} 11. Bxf4
{[%clk 0:02:50]} 11... Bxd3 {[%clk 0:02:22.3]} 12. Qxd3 {[%clk 0:02:50.7]} 12...
Qa5+ {[%clk 0:02:23]} 13. c3 {[%clk 0:02:50.9]} 13... Nd7 {[%clk 0:02:21.9]} 14.
O-O {[%clk 0:02:49.5]} 14... O-O-O {[%clk 0:02:18.3]} 15. b4 {[%clk 0:02:48.4]}
15... Qh5 {[%clk 0:02:15.1]} 16. Rfb1 {[%clk 0:02:40.6]} 16... f6 {[%clk
0:02:14.4]} 17. b5 {[%clk 0:02:37.3]} 17... c5 {[%clk 0:02:15.3]} 18. b6 {[%clk
0:02:29.3]} 18... a6 {[%clk 0:02:13]} 19. Qxa6 {[%clk 0:02:23.8]} 19... e5
{[%clk 0:02:03.9]} 20. Qa8+ {[%clk 0:02:19.6]} 20... Nb8 {[%clk 0:02:04.5]} 21.
dxe5 {[%clk 0:02:16.8]} 21... g5 {[%clk 0:02:04.3]} 22. Bh2 {[%clk 0:02:14]}
22... g4 {[%clk 0:01:58.4]} 23. e6 {[%clk 0:02:08.5]} 23... Bd6 {[%clk
0:01:52.8]} 24. e7 {[%clk 0:01:55.6]} 24... gxf3 {[%clk 0:01:43.4]} 25. exd8=Q+
{[%clk 0:01:50.5]} 25... Rxd8 {[%clk 0:01:45.3]} 26. Rd1 {[%clk 0:01:43.6]}
26... Qg6 {[%clk 0:01:23.9]} 27. g4 {[%clk 0:01:35.2]} 27... hxg3 {[%clk
0:01:23.5]} 28. fxg3 {[%clk 0:01:28.3]} 28... Bxg3 {[%clk 0:01:24.2]} 29. Rxd8+
{[%clk 0:01:27.6]} 29... Kxd8 {[%clk 0:01:25.4]} 30. Rd1+ {[%clk 0:01:24.7]}
30... Bd6+ {[%clk 0:01:25.1]} 31. Kf2 {[%clk 0:00:57]} 31... Qg2+ {[%clk
0:01:24]} 32. Ke3 {[%clk 0:00:57.5]} 32... Qe2# {[%clk 0:01:25.9]} 0-1